[Event "*** Monthly 3|2 Blitz Masters"]
[Site "Chess.com"]
[Date "2014.11.25"]
[Round "2"]
[White "AlmirDzhumaev"]
[Black "esr44"]
[Result "1-0"]
[WhiteElo "2252"]
[BlackElo "2062"]
[TimeControl "180+2"]
[EndTime "11:23:51 PST"]
[Termination "AlmirDzhumaev won by resignation"]

1. e4 {[%clk 0:02:58.8]} 1... c6 {[%clk 0:02:59.2]} 2. d4 {[%clk 0:02:59.7]}
2... d5 {[%clk 0:03:00.8]} 3. exd5 {[%clk 0:03:01.6]} 3... cxd5 {[%clk
0:03:02.1]} 4. c4 {[%clk 0:03:02.1]} 4... Nf6 {[%clk 0:03:03]} 5. Nc3 {[%clk
0:03:03.1]} 5... Nc6 {[%clk 0:03:03.8]} 6. Nf3 {[%clk 0:03:04.4]} 6... Bg4
{[%clk 0:03:04.5]} 7. cxd5 {[%clk 0:03:03.7]} 7... Nxd5 {[%clk 0:03:05.5]} 8.
Qb3 {[%clk 0:03:02.6]} 8... Bxf3 {[%clk 0:03:04.2]} 9. gxf3 {[%clk 0:03:04.5]}
9... e6 {[%clk 0:03:05.3]} 10. Qxb7 {[%clk 0:03:05]} 10... Nxd4 {[%clk
0:03:06.3]} 11. Bb5+ {[%clk 0:03:05.6]} 11... Nxb5 {[%clk 0:03:07.5]} 12. Qc6+
{[%clk 0:03:06.5]} 12... Ke7 {[%clk 0:03:08.8]} 13. Qxb5 {[%clk 0:03:07.6]}
13... f6 {[%clk 0:02:54.4]} 14. Qb7+ {[%clk 0:03:00.1]} 14... Ke8 {[%clk
0:02:55]} 15. Qc6+ {[%clk 0:02:55]} 15... Kf7 {[%clk 0:02:52.7]} 16. Bd2 {[%clk
0:02:42]} 16... Rc8 {[%clk 0:02:39.5]} 17. Qb7+ {[%clk 0:02:38.3]} 17... Qc7
{[%clk 0:02:38.3]} 18. Qb3 {[%clk 0:02:35.7]} 18... Qe5+ {[%clk 0:02:30.6]} 19.
Ne4 {[%clk 0:02:33.4]} 19... Rb8 {[%clk 0:02:25.7]} 20. Qa4 {[%clk 0:02:23.5]}
20... Qxb2 {[%clk 0:01:58.4]} 21. O-O {[%clk 0:02:08.3]} 21... Be7 {[%clk
0:01:37.3]} 22. Qxa7 {[%clk 0:01:54.1]} 22... Rb7 {[%clk 0:01:34.4]} 23. Qa6
{[%clk 0:01:52.4]} 23... h6 {[%clk 0:01:20.4]} 24. Be3 {[%clk 0:01:40.2]} 24...
Rhb8 {[%clk 0:01:03.1]} 25. Bc5 {[%clk 0:01:18.2]} 25... f5 {[%clk 0:00:53.3]}
26. Nd6+ {[%clk 0:01:11.7]} 26... Bxd6 {[%clk 0:00:53]} 27. Qxd6 {[%clk
0:01:11.4]} 27... Qc3 {[%clk 0:00:43.8]} 28. Rae1 {[%clk 0:01:06.3]} 28... Re8
{[%clk 0:00:36.8]} 29. Kg2 {[%clk 0:01:01.6]} 29... Qc4 {[%clk 0:00:26]} 30. Rc1
{[%clk 0:00:54.2]} 30... Qh4 {[%clk 0:00:22.2]} 31. Be3 {[%clk 0:00:50.8]} 31...
Nxe3+ {[%clk 0:00:16.4]} 32. fxe3 {[%clk 0:00:52.2]} 32... Rb2+ {[%clk
0:00:17.4]} 33. Kh1 {[%clk 0:00:53.6]} 33... e5 {[%clk 0:00:15.8]} 34. Qd5+
{[%clk 0:00:38.2]} 34... Kg6 {[%clk 0:00:11.3]} 35. Rg1+ {[%clk 0:00:37]} 35...
Kh7 {[%clk 0:00:10.9]} 36. Rg2 {[%clk 0:00:38]} 36... Rxg2 {[%clk 0:00:09.9]}
37. Kxg2 {[%clk 0:00:39.3]} 37... Qg5+ {[%clk 0:00:10.4]} 38. Kf2 {[%clk
0:00:40.1]} 38... Rd8 {[%clk 0:00:10.8]} 39. Qa5 {[%clk 0:00:39]} 39... Qh4+
{[%clk 0:00:10.7]} 40. Kg2 {[%clk 0:00:39]} 40... Rd6 {[%clk 0:00:09.6]} 41. Qe1
{[%clk 0:00:38.5]} 41... Rg6+ {[%clk 0:00:08.7]} 42. Kh1 {[%clk 0:00:37.9]}
42... Qh3 {[%clk 0:00:09.6]} 43. Qf2 {[%clk 0:00:38.3]} 43... e4 {[%clk
0:00:10]} 44. f4 {[%clk 0:00:33.4]} 44... Rg4 {[%clk 0:00:10.8]} 45. Rg1 {[%clk
0:00:30.2]} 45... Rxg1+ {[%clk 0:00:10.7]} 46. Kxg1 {[%clk 0:00:31.4]} 46... h5
{[%clk 0:00:11]} 47. a4 {[%clk 0:00:31.6]} 47... Qg4+ {[%clk 0:00:12.1]} 48. Qg3
{[%clk 0:00:32.4]} 48... Qd1+ {[%clk 0:00:12.3]} 49. Kg2 {[%clk 0:00:33.5]}
49... Qxa4 {[%clk 0:00:14.1]} 50. Qg5 {[%clk 0:00:32.8]} 50... Qc2+ {[%clk
0:00:14.8]} 51. Kg3 {[%clk 0:00:34]} 51... g6 {[%clk 0:00:15.5]} 52. Qe7+ {[%clk
0:00:35]} 52... Kh6 {[%clk 0:00:16.5]} 53. Qf8+ {[%clk 0:00:35.5]} 53... Kh7
{[%clk 0:00:18.1]} 54. Qf7+ {[%clk 0:00:35.9]} 54... Kh6 {[%clk 0:00:19.3]} 55.
Qf6 {[%clk 0:00:34.5]} 55... Kh7 {[%clk 0:00:16.7]} 56. Qe7+ {[%clk 0:00:35.3]}
56... Kh6 {[%clk 0:00:17.2]} 57. Qd8 {[%clk 0:00:36.3]} 57... Kg7 {[%clk
0:00:15.4]} 58. Qd4+ {[%clk 0:00:35.4]} 58... Kh7 {[%clk 0:00:14.3]} 59. Qd7+
{[%clk 0:00:35.8]} 59... Kh6 {[%clk 0:00:15.5]} 60. Qe8 {[%clk 0:00:36.4]} 60...
Qc7 {[%clk 0:00:13.6]} 61. Kh4 {[%clk 0:00:34.6]} 61... Qg7 {[%clk 0:00:12.1]}
62. Qd8 {[%clk 0:00:33.8]} 62... Kh7 {[%clk 0:00:12.7]} 63. Kg5 {[%clk
0:00:34.4]} 63... Qh6+ {[%clk 0:00:11.8]} 64. Kf6 {[%clk 0:00:35.8]} 64... Qg7+
{[%clk 0:00:13.4]} 65. Ke6 {[%clk 0:00:37.1]} 65... g5 {[%clk 0:00:12.3]} 66.
fxg5 {[%clk 0:00:34.1]} 66... Qg6+ {[%clk 0:00:12.7]} 67. Ke5 {[%clk 0:00:35]}
67... Qg7+ {[%clk 0:00:11.5]} 68. Kxf5 {[%clk 0:00:35.6]} 68... Qg6+ {[%clk
0:00:12.8]} 69. Kf4 {[%clk 0:00:36.7]} 69... h4 {[%clk 0:00:12.2]} 70. Qe7+
{[%clk 0:00:36.6]} 70... Kg8 {[%clk 0:00:13.3]} 71. Qxe4 {[%clk 0:00:36.1]}
71... Qd6+ {[%clk 0:00:14.5]} 72. Qe5 {[%clk 0:00:37]} 72... Qb4+ {[%clk
0:00:14.3]} 73. Qd4 {[%clk 0:00:37]} 73... Qb8+ {[%clk 0:00:14.1]} 74. Qe5
{[%clk 0:00:37.4]} 74... Qb4+ {[%clk 0:00:15.6]} 75. Kf5 {[%clk 0:00:38.4]}
75... Qb1+ {[%clk 0:00:14.1]} 76. Qe4 {[%clk 0:00:35.6]} 76... Qf1+ {[%clk
0:00:14.3]} 77. Qf4 {[%clk 0:00:33.6]} 77... Qh3+ {[%clk 0:00:15.3]} 78. Kg6
{[%clk 0:00:30]} 78... Qe6+ {[%clk 0:00:14.9]} 79. Kh5 {[%clk 0:00:30.7]} 79...
h3 {[%clk 0:00:11.7]} 80. Kh4 {[%clk 0:00:30.2]} 80... Kg7 {[%clk 0:00:09]} 81.
Qf6+ {[%clk 0:00:30.4]} 81... Qxf6 {[%clk 0:00:09.7]} 82. gxf6+ {[%clk
0:00:32.3]} 82... Kxf6 {[%clk 0:00:11.6]} 83. Kxh3 {[%clk 0:00:33.8]} 83... Ke5
{[%clk 0:00:13.5]} 84. Kg4 {[%clk 0:00:35.2]} 84... Ke4 {[%clk 0:00:15.4]} 85.
h4 {[%clk 0:00:36.6]} 85... Kxe3 {[%clk 0:00:15.9]} 86. h5 {[%clk 0:00:38]}
86... Ke4 {[%clk 0:00:17.8]} 87. h6 {[%clk 0:00:39.9]} 1-0

[Event "*** Monthly 3|2 Blitz Masters"]
[Site "Chess.com"]
[Date "2014.11.25"]
[Round "3"]
[White "pKiLz5Rn9b"]
[Black "minnesotachessmaster"]
[Result "1-0"]
[WhiteElo "2161"]
[BlackElo "1898"]
[TimeControl "180+2"]
[EndTime "11:27:55 PST"]
[Termination "pKiLz5Rn9b won by resignation"]

1. e4 {[%clk 0:03:00]} 1... c5 {[%clk 0:02:57.8]} 2. c3 {[%clk 0:03:00.8]} 2...
d5 {[%clk 0:02:58.1]} 3. exd5 {[%clk 0:03:01.5]} 3... Qxd5 {[%clk 0:02:59.3]} 4.
d4 {[%clk 0:03:02.9]} 4... Nc6 {[%clk 0:02:58.6]} 5. Nf3 {[%clk 0:03:03.9]} 5...
Bg4 {[%clk 0:02:59.2]} 6. Be2 {[%clk 0:03:04.1]} 6... e6 {[%clk 0:02:55.8]} 7.
h3 {[%clk 0:02:58.6]} 7... Bh5 {[%clk 0:02:55.9]} 8. Be3 {[%clk 0:02:58.4]} 8...
cxd4 {[%clk 0:02:46.5]} 9. cxd4 {[%clk 0:02:59.4]} 9... Nf6 {[%clk 0:02:47.9]}
10. Nc3 {[%clk 0:03:00.7]} 10... Bb4 {[%clk 0:02:48.7]} 11. O-O {[%clk 0:03:00]}
11... Qd7 {[%clk 0:02:38.7]} 12. Ne5 {[%clk 0:02:46.3]} 12... Nxe5 {[%clk
0:02:35.4]} 13. dxe5 {[%clk 0:02:44.7]} 13... Qxd1 {[%clk 0:02:34.5]} 14. Bxd1
{[%clk 0:02:36.1]} 14... Bxd1 {[%clk 0:02:29.4]} 15. Rfxd1 {[%clk 0:02:33.2]}
15... Bxc3 {[%clk 0:02:12.6]} 16. bxc3 {[%clk 0:02:31.7]} 16... Nd5 {[%clk
0:02:13.3]} 17. Bd4 {[%clk 0:02:26]} 17... O-O {[%clk 0:02:06.2]} 18. c4 {[%clk
0:02:25.1]} 18... Nb6 {[%clk 0:02:02.2]} 19. Bxb6 {[%clk 0:02:25.2]} 19... axb6
{[%clk 0:02:03]} 20. Rd7 {[%clk 0:02:23.1]} 20... Rac8 {[%clk 0:01:52.9]} 21.
Rxb7 {[%clk 0:02:22.7]} 21... Rxc4 {[%clk 0:01:53.6]} 22. Rxb6 {[%clk 0:02:24]}
22... Rc2 {[%clk 0:01:53.4]} 23. a4 {[%clk 0:02:23.3]} 23... h6 {[%clk
0:01:54.2]} 24. a5 {[%clk 0:02:24.3]} 24... Rd8 {[%clk 0:01:54.9]} 25. a6 {[%clk
0:02:22.2]} 25... Rdd2 {[%clk 0:01:55.6]} 26. a7 {[%clk 0:02:22.4]} 1-0

[Event "*** Monthly 3|2 Blitz Masters"]
[Site "Chess.com"]
[Date "2014.11.25"]
[Round "3"]
[White "GulamaliRises"]
[Black "Dlugy"]
[Result "0-1"]
[WhiteElo "2418"]
[BlackElo "2589"]
[TimeControl "180+2"]
[EndTime "11:30:41 PST"]
[Termination "Dlugy won by resignation"]

1. e4 {[%clk 0:02:41.9]} 1... c5 {[%clk 0:02:59.2]} 2. Nf3 {[%clk 0:02:41.6]}
2... d6 {[%clk 0:03:00.9]} 3. d4 {[%clk 0:02:43]} 3... cxd4 {[%clk 0:03:02.6]}
4. Nxd4 {[%clk 0:02:44.9]} 4... Nf6 {[%clk 0:03:04]} 5. Nc3 {[%clk 0:02:46.5]}
5... Nc6 {[%clk 0:03:05.7]} 6. Bg5 {[%clk 0:02:47.1]} 6... e6 {[%clk 0:03:07.3]}
7. Qd2 {[%clk 0:02:48.6]} 7... a6 {[%clk 0:03:09]} 8. O-O-O {[%clk 0:02:49.2]}
8... h6 {[%clk 0:03:10.7]} 9. Nxc6 {[%clk 0:02:49]} 9... bxc6 {[%clk 0:03:12]}
10. Bf4 {[%clk 0:02:50.4]} 10... d5 {[%clk 0:03:13.7]} 11. Qe3 {[%clk
0:02:40.2]} 11... Qa5 {[%clk 0:03:14.6]} 12. exd5 {[%clk 0:02:31]} 12... cxd5
{[%clk 0:03:15.4]} 13. Be5 {[%clk 0:02:29.9]} 13... Be7 {[%clk 0:03:00.8]} 14.
h3 {[%clk 0:02:25.7]} 14... O-O {[%clk 0:02:54.5]} 15. Qg3 {[%clk 0:02:08]}
15... Bd7 {[%clk 0:02:46.9]} 16. Be2 {[%clk 0:02:07.8]} 16... Rfc8 {[%clk
0:02:46.4]} 17. f4 {[%clk 0:01:56.6]} 17... Ne8 {[%clk 0:02:29.4]} 18. f5 {[%clk
0:01:51.8]} 18... Bf6 {[%clk 0:02:14.8]} 19. fxe6 {[%clk 0:01:52.9]} 19... Bxe6
{[%clk 0:02:12.1]} 20. Bf3 {[%clk 0:01:46.3]} 20... Bxe5 {[%clk 0:02:12.8]} 21.
Qxe5 {[%clk 0:01:45.8]} 21... Nf6 {[%clk 0:02:14.4]} 22. Rhe1 {[%clk 0:01:29.1]}
22... Rab8 {[%clk 0:02:15.4]} 23. a3 {[%clk 0:01:15.3]} 23... Nd7 {[%clk
0:02:15]} 24. Qd4 {[%clk 0:00:43.5]} 24... Rc4 {[%clk 0:02:03.8]} 25. Qe3 {[%clk
0:00:44.3]} 25... Rbc8 {[%clk 0:01:53.8]} 26. Nxd5 {[%clk 0:00:25.9]} 26...
Rxc2+ {[%clk 0:01:53.1]} 27. Kb1 {[%clk 0:00:27.4]} 27... Qb5 {[%clk 0:01:40.5]}
28. Qd4 {[%clk 0:00:22.5]} 28... R8c4 {[%clk 0:01:36.2]} 29. Be2 {[%clk
0:00:16.6]} 29... Rxe2 {[%clk 0:01:29.1]} 0-1

[Event "*** Monthly 3|2 Blitz Masters"]
[Site "Chess.com"]
[Date "2014.11.25"]
[Round "3"]
[White "David_Klein"]
[Black "redchessman"]
[Result "1-0"]
[WhiteElo "2366"]
[BlackElo "2238"]
[TimeControl "180+2"]
[EndTime "11:31:13 PST"]
[Termination "David_Klein won by resignation"]

1. e4 {[%clk 0:03:00]} 1... c5 {[%clk 0:02:58.8]} 2. Nf3 {[%clk 0:03:01.3]} 2...
e6 {[%clk 0:03:00.3]} 3. g3 {[%clk 0:03:02]} 3... Nc6 {[%clk 0:02:59.1]} 4. Bg2
{[%clk 0:03:03]} 4... d6 {[%clk 0:03:00.4]} 5. O-O {[%clk 0:03:04.1]} 5... Bd7
{[%clk 0:03:01.6]} 6. c3 {[%clk 0:03:05.3]} 6... Be7 {[%clk 0:03:00.3]} 7. d4
{[%clk 0:03:05.9]} 7... cxd4 {[%clk 0:03:01.4]} 8. cxd4 {[%clk 0:03:07.8]} 8...
Nf6 {[%clk 0:02:59.6]} 9. Nc3 {[%clk 0:03:06.8]} 9... O-O {[%clk 0:02:57.5]} 10.
Qe2 {[%clk 0:03:07]} 10... a6 {[%clk 0:02:54.6]} 11. Rd1 {[%clk 0:03:07.8]}
11... Qb8 {[%clk 0:02:54.4]} 12. e5 {[%clk 0:03:03.8]} 12... Ne8 {[%clk
0:02:54]} 13. Bf4 {[%clk 0:03:01.4]} 13... dxe5 {[%clk 0:02:40.8]} 14. dxe5
{[%clk 0:02:59.9]} 14... Qc7 {[%clk 0:02:40.2]} 15. h4 {[%clk 0:02:55.5]} 15...
Rd8 {[%clk 0:02:36]} 16. Rac1 {[%clk 0:02:52.2]} 16... g6 {[%clk 0:02:05.8]} 17.
Ne4 {[%clk 0:02:47.8]} 17... Bc8 {[%clk 0:01:52.6]} 18. Rxd8 {[%clk 0:02:45.2]}
18... Qxd8 {[%clk 0:01:50.9]} 19. Rd1 {[%clk 0:02:44.9]} 19... Qb6 {[%clk
0:01:49.6]} 20. h5 {[%clk 0:02:19.5]} 20... Ng7 {[%clk 0:01:12.9]} 21. hxg6
{[%clk 0:02:13.1]} 21... hxg6 {[%clk 0:01:12.8]} 22. Nfg5 {[%clk 0:01:57.9]}
22... Nh5 {[%clk 0:01:09.2]} 23. Be3 {[%clk 0:01:30.5]} 23... Qc7 {[%clk
0:01:08.4]} 24. f4 {[%clk 0:01:30.5]} 24... Rd8 {[%clk 0:01:00.3]} 25. Rxd8+
{[%clk 0:01:26.8]} 25... Qxd8 {[%clk 0:01:00.2]} 26. g4 {[%clk 0:01:27.9]} 26...
Ng7 {[%clk 0:00:58.7]} 27. Qe1 {[%clk 0:01:23.3]} 27... Qd3 {[%clk 0:00:19.5]}
28. Bf1 {[%clk 0:01:06.7]} 28... Qc2 {[%clk 0:00:05.1]} 29. Qh4 {[%clk
0:01:07.6]} 1-0

[Event "*** Monthly 3|2 Blitz Masters"]
[Site "Chess.com"]
[Date "2014.11.25"]
[Round "3"]
[White "jup1978"]
[Black "WanderingPuppet"]
[Result "0-1"]
[WhiteElo "2123"]
[BlackElo "2032"]
[TimeControl "180+2"]
[EndTime "11:31:30 PST"]
[Termination "WanderingPuppet won by checkmate"]

1. e4 {[%clk 0:03:00]} 1... c5 {[%clk 0:02:58]} 2. Nf3 {[%clk 0:03:01]} 2... d6
{[%clk 0:02:59.2]} 3. d4 {[%clk 0:03:01.9]} 3... cxd4 {[%clk 0:03:01.1]} 4. Nxd4
{[%clk 0:03:03.6]} 4... Nf6 {[%clk 0:03:02.8]} 5. Nc3 {[%clk 0:03:04.9]} 5... a6
{[%clk 0:03:04.5]} 6. Be3 {[%clk 0:03:06.4]} 6... e6 {[%clk 0:03:05.9]} 7. Be2
{[%clk 0:03:05.5]} 7... Qc7 {[%clk 0:03:05.9]} 8. f4 {[%clk 0:02:59.7]} 8... b5
{[%clk 0:03:06.6]} 9. a3 {[%clk 0:02:59.2]} 9... Bb7 {[%clk 0:03:05]} 10. Bf3
{[%clk 0:03:00.2]} 10... Nbd7 {[%clk 0:03:06.6]} 11. Qe2 {[%clk 0:02:48]} 11...
Nc5 {[%clk 0:02:58.7]} 12. Bf2 {[%clk 0:02:47]} 12... h5 {[%clk 0:02:52]} 13.
O-O-O {[%clk 0:02:46.6]} 13... Be7 {[%clk 0:02:39.5]} 14. Kb1 {[%clk 0:02:46.9]}
14... Rb8 {[%clk 0:02:31.4]} 15. h3 {[%clk 0:02:47.8]} 15... Ba8 {[%clk
0:02:29.3]} 16. g4 {[%clk 0:02:47]} 16... b4 {[%clk 0:02:29.5]} 17. axb4 {[%clk
0:02:45.9]} 17... Rxb4 {[%clk 0:02:30.4]} 18. g5 {[%clk 0:02:37.1]} 18... Nfd7
{[%clk 0:02:18.1]} 19. g6 {[%clk 0:02:27.3]} 19... Nb6 {[%clk 0:01:36]} 20.
gxf7+ {[%clk 0:02:27.1]} 20... Kf8 {[%clk 0:01:21.3]} 21. Na2 {[%clk 0:02:26.8]}
21... Ra4 {[%clk 0:01:03]} 22. b3 {[%clk 0:02:27.7]} 22... Nc4 {[%clk
0:00:26.9]} 23. bxa4 {[%clk 0:01:51.6]} 23... Qb7+ {[%clk 0:00:20.3]} 24. Nb3
{[%clk 0:01:51.9]} 24... Nxb3 {[%clk 0:00:21.4]} 25. cxb3 {[%clk 0:01:38.9]}
25... Qxb3+ {[%clk 0:00:21.6]} 26. Ka1 {[%clk 0:01:39]} 26... Bf6+ {[%clk
0:00:18.8]} 27. e5 {[%clk 0:01:29]} 27... Bxf3 {[%clk 0:00:14.4]} 28. Rb1 {[%clk
0:01:11.8]} 28... Qxb1+ {[%clk 0:00:10.7]} 29. Kxb1 {[%clk 0:01:12.1]} 29...
Bxe2 {[%clk 0:00:12]} 30. exf6 {[%clk 0:01:12.7]} 30... Kxf7 {[%clk 0:00:10.8]}
31. Re1 {[%clk 0:01:05.7]} 31... Bd3+ {[%clk 0:00:11]} 32. Kc1 {[%clk
0:01:04.8]} 32... Rb8 {[%clk 0:00:08.7]} 33. Bd4 {[%clk 0:01:05.8]} 33... Rb1#
{[%clk 0:00:08.1]} 0-1

[Event "*** Monthly 3|2 Blitz Masters"]
[Site "Chess.com"]
[Date "2014.11.25"]
[Round "3"]
[White "vovkcoach"]
[Black "Byniolus"]
[Result "1-0"]
[WhiteElo "2496"]
[BlackElo "2325"]
[TimeControl "180+2"]
[EndTime "11:31:39 PST"]
[Termination "vovkcoach won by resignation"]

1. e4 {[%clk 0:03:00]} 1... d6 {[%clk 0:02:59.1]} 2. d4 {[%clk 0:03:00]} 2...
Nf6 {[%clk 0:03:01]} 3. Nc3 {[%clk 0:03:01.9]} 3... c6 {[%clk 0:03:02]} 4. a4
{[%clk 0:02:58.7]} 4... e5 {[%clk 0:03:01.4]} 5. Nf3 {[%clk 0:02:58.7]} 5...
Nbd7 {[%clk 0:03:02.1]} 6. Bc4 {[%clk 0:02:58.4]} 6... Be7 {[%clk 0:03:03.4]} 7.
O-O {[%clk 0:02:59.4]} 7... O-O {[%clk 0:03:04.7]} 8. Re1 {[%clk 0:03:00.2]}
8... exd4 {[%clk 0:02:58.9]} 9. Qxd4 {[%clk 0:02:52.4]} 9... Nb6 {[%clk
0:02:59.4]} 10. Bb3 {[%clk 0:02:41.3]} 10... Bg4 {[%clk 0:02:59.9]} 11. a5
{[%clk 0:02:26.9]} 11... Nbd7 {[%clk 0:02:56.2]} 12. Nd2 {[%clk 0:02:28.2]}
12... Nc5 {[%clk 0:02:54.9]} 13. Ba2 {[%clk 0:02:23.2]} 13... Be6 {[%clk
0:02:50.3]} 14. b4 {[%clk 0:02:19.4]} 14... Na6 {[%clk 0:02:33]} 15. Ba3 {[%clk
0:02:07.7]} 15... Bxa2 {[%clk 0:02:27]} 16. Rxa2 {[%clk 0:02:09.6]} 16... d5
{[%clk 0:02:02.5]} 17. exd5 {[%clk 0:02:06.8]} 17... Nxd5 {[%clk 0:01:44.5]} 18.
Nxd5 {[%clk 0:02:01.5]} 18... cxd5 {[%clk 0:01:46.4]} 19. b5 {[%clk 0:01:43.3]}
19... Bf6 {[%clk 0:01:18.2]} 20. Qd3 {[%clk 0:01:36.4]} 20... Nc7 {[%clk
0:00:57.6]} 21. Bxf8 {[%clk 0:01:35]} 21... Qxf8 {[%clk 0:00:58.9]} 22. Nb3
{[%clk 0:01:24]} 22... Qb4 {[%clk 0:00:52]} 23. Rb1 {[%clk 0:01:23.2]} 23... Re8
{[%clk 0:00:42.8]} 24. Nd2 {[%clk 0:01:19.9]} 24... Qxb1+ {[%clk 0:00:24.6]} 25.
Nxb1 {[%clk 0:01:19.7]} 25... Re1+ {[%clk 0:00:26.5]} 26. Qf1 {[%clk 0:01:21.5]}
26... Rxf1+ {[%clk 0:00:28.4]} 27. Kxf1 {[%clk 0:01:23.4]} 27... Nxb5 {[%clk
0:00:30.3]} 28. Ra4 {[%clk 0:01:21]} 28... a6 {[%clk 0:00:29.1]} 29. c4 {[%clk
0:01:19.9]} 29... dxc4 {[%clk 0:00:27.4]} 30. Rxc4 {[%clk 0:01:21.8]} 30... g6
{[%clk 0:00:20.7]} 31. Rc8+ {[%clk 0:01:16.9]} 31... Kg7 {[%clk 0:00:22.1]} 32.
Nd2 {[%clk 0:01:18.8]} 32... Bc3 {[%clk 0:00:21.3]} 33. Nc4 {[%clk 0:01:17.6]}
33... Nd4 {[%clk 0:00:15.2]} 34. Nd6 {[%clk 0:01:15.6]} 34... Bxa5 {[%clk
0:00:12.9]} 35. Nxb7 {[%clk 0:01:17]} 35... Bb4 {[%clk 0:00:13.6]} 36. Rc4
{[%clk 0:01:17.3]} 1-0

[Event "*** Monthly 3|2 Blitz Masters"]
[Site "Chess.com"]
[Date "2014.11.25"]
[Round "3"]
[White "gmjlh"]
[Black "rhungaski"]
[Result "1-0"]
[WhiteElo "2521"]
[BlackElo "2416"]
[TimeControl "180+2"]
[EndTime "11:31:42 PST"]
[Termination "gmjlh won by resignation"]

1. e4 {[%clk 0:03:00]} 1... d6 {[%clk 0:02:58.7]} 2. d4 {[%clk 0:03:00.5]} 2...
Nf6 {[%clk 0:02:59.9]} 3. Nc3 {[%clk 0:03:01.9]} 3... e5 {[%clk 0:03:01.2]} 4.
Nf3 {[%clk 0:03:02.6]} 4... Nbd7 {[%clk 0:03:00.5]} 5. Bc4 {[%clk 0:03:03.6]}
5... Be7 {[%clk 0:03:01.3]} 6. O-O {[%clk 0:03:04.4]} 6... O-O {[%clk
0:03:02.1]} 7. a4 {[%clk 0:03:04.5]} 7... a5 {[%clk 0:03:02.8]} 8. Re1 {[%clk
0:03:03.9]} 8... c6 {[%clk 0:03:03.8]} 9. Bf1 {[%clk 0:03:04.7]} 9... exd4
{[%clk 0:02:59.2]} 10. Nxd4 {[%clk 0:03:05.4]} 10... Nc5 {[%clk 0:03:00.7]} 11.
h3 {[%clk 0:03:04.2]} 11... Be6 {[%clk 0:02:55.2]} 12. Bf4 {[%clk 0:03:03.9]}
12... Ne8 {[%clk 0:02:42.1]} 13. Qd2 {[%clk 0:03:00.7]} 13... Qb6 {[%clk
0:02:42.7]} 14. b3 {[%clk 0:02:53.1]} 14... Qb4 {[%clk 0:02:41.1]} 15. Rad1
{[%clk 0:02:51.1]} 15... Rd8 {[%clk 0:02:33.3]} 16. Nb1 {[%clk 0:02:49.6]} 16...
Qxd2 {[%clk 0:02:28.5]} 17. Nxd2 {[%clk 0:02:51.5]} 17... Bf6 {[%clk 0:02:26.1]}
18. Nc4 {[%clk 0:02:51.7]} 18... Bxc4 {[%clk 0:02:22.8]} 19. Bxc4 {[%clk
0:02:51.9]} 19... Be7 {[%clk 0:02:13.5]} 20. Nf5 {[%clk 0:02:50.6]} 20... Rd7
{[%clk 0:02:11.6]} 21. Nxe7+ {[%clk 0:02:32.6]} 21... Rxe7 {[%clk 0:02:13.5]}
22. f3 {[%clk 0:02:34]} 22... Rd7 {[%clk 0:02:09.4]} 23. Rd2 {[%clk 0:02:32.9]}
23... Ne6 {[%clk 0:02:05.5]} 24. Bg3 {[%clk 0:02:34]} 24... N8c7 {[%clk
0:01:24.7]} 25. Rxd6 {[%clk 0:02:33.9]} 25... Rxd6 {[%clk 0:01:25.7]} 26. Bxd6
{[%clk 0:02:35.8]} 26... Rd8 {[%clk 0:01:26.7]} 27. Be5 {[%clk 0:02:28.4]} 27...
Kf8 {[%clk 0:01:16.8]} 28. Kf2 {[%clk 0:02:25.4]} 28... b5 {[%clk 0:01:15.9]}
29. axb5 {[%clk 0:02:24.4]} 29... cxb5 {[%clk 0:01:17.8]} 30. Bd3 {[%clk
0:02:24.9]} 30... a4 {[%clk 0:01:13.6]} 31. bxa4 {[%clk 0:02:24.3]} 31... bxa4
{[%clk 0:01:15.5]} 32. Ra1 {[%clk 0:02:25.1]} 32... Ra8 {[%clk 0:01:16.7]} 33.
Bd6+ {[%clk 0:02:24.2]} 33... Ke8 {[%clk 0:01:16.9]} 34. Ke3 {[%clk 0:02:18.3]}
34... Kd7 {[%clk 0:01:16.9]} 35. Ba3 {[%clk 0:02:18.9]} 35... Kc6 {[%clk
0:01:12.6]} 36. f4 {[%clk 0:02:18.3]} 36... Nb5 {[%clk 0:01:08.8]} 37. Bb4
{[%clk 0:02:17.8]} 37... Nc5 {[%clk 0:01:07.1]} 38. Bc4 {[%clk 0:02:18.5]} 38...
Re8 {[%clk 0:00:51.8]} 39. Bxc5 {[%clk 0:02:01.8]} 39... Kxc5 {[%clk 0:00:52.4]}
40. Rxa4 {[%clk 0:02:03]} 40... Nc3 {[%clk 0:00:53.3]} 41. Bxf7 {[%clk
0:02:03.8]} 41... Nxa4 {[%clk 0:00:15.4]} 42. Bxe8 {[%clk 0:02:04.5]} 42... Nc3
{[%clk 0:00:14.1]} 43. Bf7 {[%clk 0:02:02.4]} 43... Nd1+ {[%clk 0:00:14.8]} 44.
Ke2 {[%clk 0:02:02.7]} 44... Nc3+ {[%clk 0:00:12.9]} 45. Kd3 {[%clk 0:02:03.7]}
45... Nb5 {[%clk 0:00:14.8]} 46. c3 {[%clk 0:02:03.2]} 46... Nd6 {[%clk
0:00:15.5]} 47. Bg8 {[%clk 0:02:04.1]} 47... h6 {[%clk 0:00:16.2]} 48. g4 {[%clk
0:02:05.1]} 48... Ne8 {[%clk 0:00:15.2]} 49. e5 {[%clk 0:02:05.7]} 49... Nc7
{[%clk 0:00:16.4]} 50. Ke4 {[%clk 0:02:05.7]} 50... Kc6 {[%clk 0:00:17.3]} 51.
Kf5 {[%clk 0:02:06.2]} 51... Kd7 {[%clk 0:00:18.4]} 52. Kg6 {[%clk 0:02:06.8]}
1-0

[Event "*** Monthly 3|2 Blitz Masters"]
[Site "Chess.com"]
[Date "2014.11.25"]
[Round "3"]
[White "alturas_pacificas"]
[Black "juniortay"]
[Result "1-0"]
[WhiteElo "2057"]
[BlackElo "2198"]
[TimeControl "180+2"]
[EndTime "11:32:19 PST"]
[Termination "alturas_pacificas won on time"]

1. d4 {[%clk 0:03:00]} 1... Nf6 {[%clk 0:02:57.5]} 2. Bf4 {[%clk 0:03:01]} 2...
c5 {[%clk 0:02:54.9]} 3. d5 {[%clk 0:03:01.8]} 3... d6 {[%clk 0:02:45.8]} 4. Nc3
{[%clk 0:03:01.1]} 4... g6 {[%clk 0:02:46.1]} 5. e4 {[%clk 0:03:01.6]} 5... Bg7
{[%clk 0:02:47]} 6. h3 {[%clk 0:02:51.4]} 6... Qa5 {[%clk 0:02:43]} 7. Qd2
{[%clk 0:02:47.5]} 7... O-O {[%clk 0:02:42.4]} 8. Nf3 {[%clk 0:02:45.4]} 8... b5
{[%clk 0:02:39.4]} 9. Nxb5 {[%clk 0:02:32.7]} 9... Qb6 {[%clk 0:02:38.7]} 10. e5
{[%clk 0:02:22.7]} 10... dxe5 {[%clk 0:01:50.2]} 11. Bxe5 {[%clk 0:02:21.1]}
11... Bf5 {[%clk 0:01:15]} 12. c4 {[%clk 0:01:30.3]} 12... Ne4 {[%clk
0:01:08.5]} 13. Qc1 {[%clk 0:01:21.2]} 13... Qa5+ {[%clk 0:00:48.3]} 14. Nc3
{[%clk 0:01:07.9]} 14... Nd7 {[%clk 0:00:38]} 15. Bxg7 {[%clk 0:01:04.3]} 15...
Kxg7 {[%clk 0:00:39.9]} 16. Be2 {[%clk 0:00:36.7]} 16... Rab8 {[%clk 0:00:39.6]}
17. O-O {[%clk 0:00:32.5]} 17... Nxc3 {[%clk 0:00:30.2]} 18. bxc3 {[%clk
0:00:34.4]} 18... Nf6 {[%clk 0:00:22]} 19. Nd2 {[%clk 0:00:34.5]} 19... Qc7
{[%clk 0:00:09.4]} 20. Re1 {[%clk 0:00:29.7]} 20... h5 {[%clk 0:00:08.9]} 21.
Bf3 {[%clk 0:00:28.1]} 21... Rb6 {[%clk 0:00:09.8]} 22. Nb3 {[%clk 0:00:29.1]}
22... Rfb8 {[%clk 0:00:10.5]} 23. Qe3 {[%clk 0:00:30]} 23... Re8 {[%clk
0:00:08.9]} 24. Qxc5 {[%clk 0:00:29.3]} 24... Qb8 {[%clk 0:00:10.6]} 25. Qd4
{[%clk 0:00:26.7]} 25... Kh7 {[%clk 0:00:10.1]} 26. c5 {[%clk 0:00:27.3]} 26...
Ra6 {[%clk 0:00:09.6]} 27. c4 {[%clk 0:00:24.1]} 27... Ra4 {[%clk 0:00:03]} 28.
c6 {[%clk 0:00:21.1]} 28... Qb4 {[%clk 0:00:03.8]} 29. Rec1 {[%clk 0:00:16.5]}
29... Rc8 {[%clk 0:00:02.2]} 30. Qc5 {[%clk 0:00:10.4]} 1-0